bitfinex-derivatives/quotes_BTCF0:USTF0_20250710
["timestamp","ask_amount","ask_price","bid_price","bid_amount"]
[1752136079970,0.05173974,111340.0,111330.0,1.15243801]
[1752136080867,0.05173974,111340.0,111330.0,1.13667727]
[1752136082177,0.05173974,111340.0,111330.0,1.14568469]
[1752136083178,0.01906055,111340.0,111330.0,1.14568469]
[1752136083877,0.01906055,111340.0,111330.0,1.13164648]
[1752136085982,0.01906055,111340.0,111330.0,1.49244648]
[1752136089684,0.01906055,111340.0,111330.0,0.77084648]
[1752136089984,0.01906055,111340.0,111330.0,1.50820648]
[1752136090885,0.01906055,111340.0,111330.0,1.49244648]
[1752136092085,0.01906055,111340.0,111330.0,1.49244649]
[1752136093182,0.05113698,111340.0,111330.0,1.49244649]
[1752136099589,0.05113698,111340.0,111330.0,0.77084649]
[1752136099783,0.05113698,111340.0,111330.0,1.50873649]
[1752136100689,0.05113698,111340.0,111330.0,1.49972907]
[1752136100885,0.05113698,111340.0,111330.0,1.48307907]
[1752136101789,0.05113698,111340.0,111330.0,1.24325544]
[1752136103686,0.05113698,111340.0,111330.0,0.88245544]
[1752136103886,0.05113698,111340.0,111330.0,0.89874544]
[1752136104489,0.05113698,111340.0,111330.0,0.91275905]
[1752136104785,0.05113698,111340.0,111330.0,1.15258268]
[1752136107190,0.05113698,111340.0,111330.0,1.2334696]
[1752136110093,0.05113698,111340.0,111330.0,1.23348459]
[1752136110797,0.05113698,111340.0,111330.0,1.21719459]
[1752136112598,0.05113698,111340.0,111330.0,1.20316644]
[1752136112791,0.05113698,111340.0,111330.0,0.84236644]
[1752136113096,0.05113698,111340.0,111330.0,1.21945644]
[1752136113596,0.05113698,111340.0,111330.0,0.85865644]
[1752136113795,0.05113698,111340.0,111330.0,1.21945644]
[1752136116497,0.05113698,111340.0,111330.0,0.87269453]
[1752136116704,0.05113698,111340.0,111330.0,1.23349453]
[1752136119095,0.05113698,111340.0,111330.0,1.23349454]
[1752136120999,0.05113698,111340.0,111330.0,1.21720454]
[1752136122497,0.05113698,111340.0,111330.0,1.20316645]
[1752136124406,0.05113698,111340.0,111330.0,0.96334282]
[1752136124597,0.05113698,111340.0,111330.0,0.97963282]
[1752136126302,0.05113698,111340.0,111330.0,1.21945645]
[1752136127603,0.05113698,111340.0,111330.0,1.23347648]
[1752136128504,0.05113698,111340.0,111330.0,0.87267648]
[1752136128704,0.05113698,111340.0,111330.0,1.23347648]
[1752136130808,0.05113698,111340.0,111330.0,1.21673648]
[1752136131606,0.05113698,111340.0,111330.0,1.20271645]
[1752136132610,0.05113698,111340.0,111330.0,1.21675454]
[1752136134811,0.24438448,111340.0,111330.0,0.71353728]
[1752136135111,0.78823174,111340.0,111330.0,0.24729036]
[1752136135310,0.30858448,111340.0,111330.0,0.23172036]
[1752136135505,0.54840811,111340.0,111330.0,0.44797399]
[1752136135707,0.51633168,111340.0,111330.0,0.50187969]
[1752136136007,0.51633168,111340.0,111330.0,0.54101969]
[1752136136402,0.51633168,111340.0,111330.0,0.51744969]
[1752136136610,0.51633168,111340.0,111330.0,0.54101969]
[1752136136807,0.51633168,111340.0,111330.0,0.51744969]
[1752136137306,0.51633168,111340.0,111330.0,0.54101969]
[1752136137508,0.51633168,111340.0,111330.0,0.5410205]
[1752136138305,0.50265168,111340.0,111330.0,0.5018805]
[1752136138818,0.51633168,111340.0,111330.0,0.5254505]
[1752136139111,0.55306996,111340.0,111330.0,0.4871148]
[1752136139311,0.37350246,111340.0,111330.0,0.4871148]
[1752136139506,0.13367883,111340.0,111330.0,0.50978542]
[1752136139708,0.13367883,111340.0,111330.0,0.54228542]
[1752136139907,0.13367883,111340.0,111330.0,0.53877671]
[1752136140107,0.13367883,111340.0,111330.0,0.52824733]
[1752136140712,0.11999883,111340.0,111330.0,0.48910733]
[1752136141007,0.13467883,111340.0,111330.0,0.55081589]
[1752136141412,0.13467883,111340.0,111330.0,0.54881589]
[1752136142115,0.31424633,111340.0,111330.0,0.54881589]
[1752136142314,0.28194633,111340.0,111330.0,0.54881589]
[1752136142618,0.26826633,111340.0,111330.0,0.54881589]
[1752136143013,0.26826633,111340.0,111330.0,0.53828651]
[1752136143716,0.08869883,111340.0,111330.0,0.53828651]
[1752136143911,0.26826633,111340.0,111330.0,0.53828651]
[1752136144214,0.05679883,111340.0,111330.0,0.52424733]
[1752136144412,0.05679883,111340.0,111330.0,1.12487096]
[1752136144807,0.05679883,111340.0,111330.0,0.88504733]
[1752136145311,0.05679883,111340.0,111330.0,1.12487096]
[1752136147717,0.05679883,111340.0,111330.0,0.88504733]
[1752136149319,0.23636633,111340.0,111330.0,0.88504733]
[1752136150218,0.23636633,111340.0,111330.0,0.52424733]
[1752136150421,0.23636633,111340.0,111330.0,0.88504733]
[1752136152018,0.23636633,111340.0,111330.0,0.6452237]
[1752136152218,0.23636633,111340.0,111330.0,0.88504733]
[1752136154925,0.23636633,111340.0,111330.0,0.89906568]
[1752136155223,0.47618996,111340.0,111330.0,0.65924205]
[1752136155423,0.47618996,111340.0,111330.0,0.89906568]
[1752136156528,0.23636633,111340.0,111330.0,0.89906568]
[1752136156730,0.47618996,111340.0,111330.0,0.89906568]
[1752136157735,0.23636633,111340.0,111330.0,0.89906568]
[1752136158230,0.47618996,111340.0,111330.0,0.89906568]
[1752136159932,0.47618996,111340.0,111330.0,0.65924205]
[1752136160137,0.47618996,111340.0,111330.0,0.89906568]
[1752136160733,0.47618996,111340.0,111330.0,0.85992568]
[1752136160934,0.47618996,111340.0,111330.0,0.89984568]
[1752136162540,0.23636633,111340.0,111330.0,0.89984568]
[1752136164238,0.23636633,111340.0,111330.0,0.8998518]
[1752136167238,0.23636633,111340.0,111330.0,0.88582733]
[1752136167546,0.23636633,111340.0,111330.0,0.89986597]
[1752136168639,0.47618996,111340.0,111330.0,0.89986597]
[1752136169643,0.23636633,111340.0,111330.0,0.89986597]
[1752136170245,0.23636633,111340.0,111330.0,0.88582733]
[1752136174245,0.23636633,111340.0,111330.0,0.89986597]
[1752136177649,0.05679883,111340.0,111330.0,0.89986597]
[1752136178349,0.23636633,111340.0,111330.0,0.89986597]
[1752136180252,0.05679883,111340.0,111330.0,0.89986597]
[1752136180449,0.05679883,111340.0,111330.0,1.1396896]
[1752136180850,0.05679883,111340.0,111330.0,1.1239196]
[1752136181048,0.05679883,111340.0,111330.0,1.13737743]
[1752136184155,0.05679883,111340.0,111330.0,1.13837743]
[1752136185258,0.05579883,111340.0,111330.0,1.13926558]
[1752136185458,0.05579883,111340.0,111330.0,1.15620931]
[1752136187855,0.03673828,111340.0,111330.0,1.15620931]
[1752136188061,0.05569764,111340.0,111330.0,1.15620931]
[1752136188260,0.05569764,111340.0,111330.0,1.15620947]
[1752136190061,0.05569764,111340.0,111330.0,1.15620893]
[1752136190959,0.05569764,111340.0,111330.0,1.15535893]
[1752136194360,0.05569764,111340.0,111330.0,1.15521574]
[1752136197263,0.05569764,111340.0,111330.0,1.15535832]
[1752136197564,0.05569764,111340.0,111330.0,1.51615832]
[1752136197763,0.05569764,111340.0,111330.0,0.79455832]
[1752136198064,0.05569764,111340.0,111330.0,1.53120832]
[1752136199063,0.01895936,111340.0,111330.0,1.66589404]
[1752136200064,0.01895936,111340.0,111330.0,1.58508261]
[1752136200257,0.08084762,111350.0,111340.0,0.1795675]
[1752136200454,0.01878575,111360.0,111350.0,0.1795514]
[1752136200662,0.09958689,111360.0,111350.0,1.13845867]
[1752136200860,0.09958689,111360.0,111350.0,1.12340867]
[1752136201163,0.01878575,111360.0,111350.0,1.12340867]
[1752136201358,0.01878575,111360.0,111350.0,1.13697642]
[1752136201665,0.01878575,111360.0,111350.0,1.15101282]
[1752136202164,0.01878575,111360.0,111350.0,1.15081032]
[1752136202363,0.09958689,111360.0,111350.0,1.15081032]
[1752136203165,0.09958689,111360.0,111350.0,1.15993928]
[1752136204365,0.09958689,111360.0,111350.0,1.14590288]
[1752136205159,0.10058689,111360.0,111350.0,1.14590288]
[1752136207565,0.10158689,111360.0,111350.0,1.14590288]
[1752136208067,0.10158689,111360.0,111350.0,1.14586451]
[1752136208371,0.10158689,111360.0,111350.0,0.90604088]
[1752136208566,0.10158689,111360.0,111350.0,0.92109088]
[1752136208772,0.10158689,111360.0,111350.0,1.16091451]
[1752136210866,0.10158689,111360.0,111350.0,1.14586451]
[1752136211064,0.10158689,111360.0,111350.0,1.14584996]
[1752136211371,0.10158689,111360.0,111350.0,1.136721]
[1752136211572,0.10158689,111360.0,111350.0,0.89689737]
[1752136211872,0.10158689,111360.0,111350.0,0.91194737]
[1752136212372,0.02078575,111360.0,111350.0,0.91194737]
[1752136214774,0.02078575,111360.0,111350.0,1.151771]
[1752136216762,0.02078575,111360.0,111350.0,1.15170056]
[1752136219979,0.02078575,111360.0,111350.0,0.65514329]
[1752136220276,0.44014468,111360.0,111350.0,0.89570692]
[1752136220465,0.20032105,111360.0,111350.0,0.65588329]
[1752136220662,0.02078575,111360.0,111350.0,0.89570692]
[1752136220868,0.02078575,111360.0,111350.0,0.85661692]
[1752136221064,0.02078575,111360.0,111350.0,0.89570692]
[1752136221481,0.02078575,111360.0,111350.0,0.65588329]
[1752136221778,0.20032105,111360.0,111350.0,0.89570692]
[1752136222078,0.02078575,111360.0,111350.0,0.89570692]
[1752136222680,0.02078575,111360.0,111350.0,0.89564943]
[1752136225677,0.02078575,111360.0,111350.0,0.89565123]
[1752136228478,0.10158689,111360.0,111350.0,0.89565123]
[1752136228679,0.10158689,111360.0,111350.0,0.6558276]
[1752136228882,0.20032105,111360.0,111350.0,0.6558276]
[1752136229080,0.02078575,111360.0,111350.0,0.89565123]
[1752136229279,0.10158689,111360.0,111350.0,0.89565123]
[1752136231196,0.10158689,111360.0,111350.0,0.88246503]
[1752136231379,0.20032095,111360.0,111350.0,0.90702792]
[1752136231579,0.02078575,111360.0,111350.0,0.90702792]
[1752136231982,0.20032095,111360.0,111350.0,0.90702792]
[1752136232191,0.02078575,111360.0,111350.0,0.90702792]
[1752136232385,0.02078575,111360.0,111350.0,0.62811429]
[1752136232595,0.02078575,111360.0,111350.0,0.66720429]
[1752136232785,0.02078575,111360.0,111350.0,0.90702792]
[1752136233085,0.02078575,111360.0,111350.0,0.89650097]
[1752136234891,0.20032095,111360.0,111350.0,0.89650097]
[1752136235593,0.02078575,111360.0,111350.0,0.89650097]
[1752136236885,0.10158689,111360.0,111350.0,0.88246503]
[1752136241099,0.10158689,111360.0,111350.0,0.84337503]
[1752136241298,0.10158689,111360.0,111350.0,0.88246503]
[1752136242901,0.02078575,111360.0,111350.0,0.89650088]
[1752136244899,0.02078575,111360.0,111350.0,0.65667725]
[1752136245098,0.02078575,111360.0,111350.0,0.89650088]
[1752136248103,0.02078575,111360.0,111350.0,1.13632451]
[1752136250200,0.10158689,111360.0,111350.0,1.13632451]
[1752136251001,0.10158689,111360.0,111350.0,1.09723451]
[1752136251198,0.10158689,111360.0,111350.0,0.88087088]
[1752136251497,0.10158689,111360.0,111350.0,0.89688088]
[1752136252404,0.12810041,111360.0,111350.0,0.89688088]
[1752136253094,0.12810041,111360.0,111350.0,0.88284503]
[1752136253297,0.30763571,111360.0,111350.0,0.88284503]
[1752136253802,0.12810041,111360.0,111350.0,0.88284503]
[1752136254004,0.30763571,111360.0,111350.0,0.89688081]
[1752136254406,0.12810041,111360.0,111350.0,0.89688081]
[1752136256999,0.02078575,111360.0,111350.0,0.89688081]
[1752136257904,0.02078575,111360.0,111350.0,0.90740767]
[1752136259003,0.10162457,111360.0,111350.0,0.90740767]
[1752136261304,0.10162457,111360.0,111350.0,1.12266866]
[1752136261609,0.10162457,111360.0,111350.0,1.14723134]
[1752136262209,0.10162457,111360.0,111350.0,1.13319552]
[1752136262409,0.10162457,111360.0,111350.0,1.12266866]
[1752136262410,0.02078575,111360.0,111350.0,1.12266866]
[1752136262594,0.02078575,111360.0,111350.0,1.13319524]
[1752136263207,0.02078575,111360.0,111350.0,1.1367041]
[1752136263612,0.02078575,111360.0,111350.0,1.14723068]
[1752136264315,0.02078575,111360.0,111350.0,1.13319524]
[1752136264604,0.02078575,111360.0,111350.0,1.13670409]
[1752136264806,0.02078575,111360.0,111350.0,1.14723066]
[1752136265207,0.02078575,111360.0,111350.0,0.78643066]
[1752136265408,0.02078575,111360.0,111350.0,1.50803066]
[1752136265707,0.02078575,111360.0,111350.0,1.48346866]
[1752136267199,0.002,111360.0,111350.0,1.48346866]
[1752136267399,0.08283882,111370.0,111360.0,0.1795353]
[1752136267608,0.08283882,111370.0,111360.0,2.30407256]
[1752136267807,0.002,111370.0,111360.0,2.35753256]
[1752136268207,0.1815192,111370.0,111360.0,2.35753256]
[1752136268415,0.002,111370.0,111360.0,2.35753256]
[1752136268607,0.003,111370.0,111360.0,2.35753256]
[1752136269707,0.003,111370.0,111360.0,2.38487431]
[1752136270814,0.003,111370.0,111360.0,2.36886431]
[1752136271814,0.08383882,111370.0,111360.0,2.36886431]
[1752136272702,0.003,111370.0,111360.0,2.36886431]
[1752136272909,0.003,111370.0,111360.0,2.36878995]
[1752136273409,0.08083882,111380.0,111370.0,0.1795192]
[1752136273610,0.09963688,111390.0,111380.0,0.179503]
[1752136273809,0.09963688,111390.0,111380.0,1.12242026]
[1752136274009,0.09963688,111390.0,111380.0,2.35918026]
[1752136275105,0.10163688,111390.0,111380.0,1.879533]
[1752136275511,0.10163688,111390.0,111380.0,2.35918026]
[1752136275816,0.10363688,111390.0,111380.0,2.35918026]
[1752136276011,0.02279806,111390.0,111380.0,2.37321354]
[1752136278016,0.09528127,111390.0,111380.0,2.37321354]
[1752136278615,0.09528127,111390.0,111380.0,2.37321308]
[1752136280219,0.09528127,111390.0,111380.0,1.89356582]
[1752136280416,0.09528127,111390.0,111380.0,2.37321308]
[1752136280616,0.02279806,111390.0,111380.0,2.37321308]
[1752136280917,0.02279806,111390.0,111380.0,2.35723308]
[1752136281119,0.02279806,111390.0,111380.0,2.34320026]
[1752136281309,0.20228496,111390.0,111380.0,2.34320026]
[1752136281510,0.02279806,111390.0,111380.0,2.34320026]
[1752136282322,0.10363688,111390.0,111380.0,2.34320026]
[1752136283020,0.28312378,111390.0,111380.0,2.34320026]
[1752136284522,0.28312378,111390.0,111380.0,1.863553]
[1752136284720,0.28312378,111390.0,111380.0,2.34320026]
[1752136285723,0.28312378,111390.0,111380.0,1.863553]
[1752136285921,0.28312378,111390.0,111380.0,2.34320026]
[1752136288425,0.28312378,111390.0,111380.0,1.863553]
[1752136288626,0.28312378,111390.0,111380.0,2.34320026]
[1752136288926,0.20228496,111390.0,111380.0,2.34320026]
[1752136289126,0.28312378,111390.0,111380.0,2.34320026]
[1752136289628,0.52294741,111390.0,111380.0,2.34320026]
[1752136290223,0.52294741,111390.0,111380.0,1.72440026]
[1752136290725,0.52294741,111390.0,111380.0,1.70091026]
[1752136291024,0.52294741,111390.0,111380.0,1.72440026]
[1752136292328,0.54942325,111390.0,111380.0,1.72440026]
[1752136294029,0.52273341,111390.0,111380.0,1.73843359]
[1752136294225,0.44210859,111390.0,111380.0,1.73843359]
[1752136295231,0.52274191,111390.0,111380.0,1.73843359]
[1752136295431,0.44210859,111390.0,111380.0,1.73843359]
[1752136298136,0.20228496,111390.0,111380.0,1.73843359]
[1752136299047,0.53647651,111390.0,111380.0,0.10052333]
[1752136299346,0.45578859,111390.0,111380.0,0.46456006]
[1752136299548,1.13570859,111390.0,111380.0,0.46456006]
[1752136299750,1.13570859,111390.0,111380.0,0.50324006]
[1752136300744,1.12202859,111390.0,111380.0,0.46456006]
[1752136300943,1.12202859,111390.0,111380.0,0.50324006]
[1752136301144,1.12202859,111390.0,111380.0,0.51693468]
[1752136301648,1.12202859,111390.0,111380.0,0.49344496]
[1752136302043,1.12202859,111390.0,111380.0,0.30623186]
[1752136302243,1.12202859,111390.0,111380.0,0.28274186]
[1752136302444,1.2028129,111390.0,111380.0,0.28274186]
[1752136302645,1.2028129,111390.0,111380.0,0.30623186]
[1752136302844,1.2028129,111390.0,111380.0,0.28274186]
[1752136303043,1.2028129,111390.0,111380.0,0.48573496]
[1752136303249,1.2028129,111390.0,111380.0,0.30623186]
[1752136303447,1.2028129,111390.0,111380.0,0.46224496]
[1752136303747,1.2028129,111390.0,111380.0,0.48573496]
[1752136304949,1.5636129,111390.0,111380.0,0.30623186]
[1752136305547,1.80343653,111390.0,111380.0,0.04291823]
[1752136305747,2.01807688,111390.0,111380.0,0.01403361]
[1752136305940,0.1795031,111380.0,111370.0,0.01708069]
[1752136306144,1.17722096,111380.0,111370.0,0.04485657]
[1752136306447,1.17719254,111380.0,111370.0,0.06018657]
[1752136307049,1.17719254,111380.0,111370.0,0.04485657]
[1752136307252,1.17719254,111380.0,111370.0,0.06018657]
[1752136307551,1.17819254,111380.0,111370.0,0.06018657]
[1752136308150,0.69854528,111380.0,111370.0,0.04644568]
[1752136308351,1.17819254,111380.0,111370.0,0.04644568]
[1752136310255,1.17819254,111380.0,111370.0,0.06018084]
[1752136310750,1.16451254,111380.0,111370.0,0.04485084]
[1752136310958,1.16451254,111380.0,111370.0,0.06018084]
[1752136311760,1.08375036,111380.0,111370.0,0.06018084]
[1752136311951,1.16451254,111380.0,111370.0,0.06018084]
[1752136313654,0.80371254,111380.0,111370.0,0.06018084]
[1752136313857,1.17819254,111380.0,111370.0,0.06018084]
[1752136315856,1.17819254,111380.0,111370.0,0.04644568]
[1752136319155,1.17819254,111380.0,111370.0,0.03241069]
[1752136320763,1.16451254,111380.0,111370.0,0.01708069]
[1752136322264,0.68486528,111380.0,111370.0,0.01708069]
[1752136322565,1.51249752,111380.0,111370.0,0.27223432]
[1752136322862,1.51249752,111380.0,111370.0,0.33613432]
[1752136323264,1.27267389,111380.0,111370.0,0.33613432]
[1752136323561,1.51249752,111380.0,111370.0,0.33613432]
[1752136323858,1.51249752,111380.0,111370.0,0.31905363]
[1752136324862,1.39152115,111380.0,111370.0,0.31905363]
[1752136325063,1.75232115,111380.0,111370.0,0.31905363]
[1752136325565,1.51249752,111380.0,111370.0,0.31905363]
[1752136325766,1.75232115,111380.0,111370.0,0.31905363]
[1752136328372,1.75232115,111380.0,111370.0,0.07923]
[1752136328669,1.75232115,111380.0,111370.0,0.31905363]
[1752136329472,1.75232115,111380.0,111370.0,0.07923]
[1752136329668,1.75232115,111380.0,111370.0,0.31905363]
[1752136330870,1.75232115,111380.0,111370.0,0.30372363]
[1752136331073,1.75232115,111380.0,111370.0,0.31905363]
[1752136331671,1.75232115,111380.0,111370.0,0.07923]
[1752136331869,1.39152115,111380.0,111370.0,0.07923]
[1752136332069,1.75232115,111380.0,111370.0,0.07923]
[1752136332772,1.67167036,111380.0,111370.0,0.07923]
[1752136336174,1.67167036,111380.0,111370.0,0.09779084]
[1752136336875,1.31087036,111380.0,111370.0,0.09779084]
[1752136337075,1.67167036,111380.0,111370.0,0.33761447]
[1752136337871,1.31087036,111380.0,111370.0,0.33761447]
[1752136338080,1.67167036,111380.0,111370.0,0.33761447]
[1752136338977,1.77898502,111380.0,111370.0,0.33761447]
[1752136339676,1.53916139,111380.0,111370.0,0.33761447]
[1752136340877,1.53916139,111380.0,111370.0,0.32228447]
[1752136341579,1.53916139,111380.0,111370.0,0.33815447]
[1752136341878,1.17836139,111380.0,111370.0,0.33815447]
[1752136342081,1.53916139,111380.0,111370.0,0.33815447]
[1752136342380,1.56599005,111380.0,111370.0,0.33815447]
[1752136343181,1.56599005,111380.0,111370.0,0.09833084]
[1752136346682,1.20519005,111380.0,111370.0,0.09833084]
[1752136346886,1.56599005,111380.0,111370.0,0.09833084]
[1752136347084,1.43184673,111380.0,111370.0,0.09833084]
[1752136348889,1.53963533,111380.0,111370.0,0.09833084]
[1752136350490,1.56599005,111380.0,111370.0,0.09833084]
[1752136351691,1.43184673,111380.0,111370.0,0.09833084]
[1752136352291,1.1920231,111380.0,111370.0,0.09833084]
[1752136352494,1.43184673,111380.0,111370.0,0.09833084]
[1752136352790,1.53963907,111380.0,111370.0,0.09833084]
[1752136354393,1.53963907,111380.0,111370.0,0.07977]
[1752136358298,1.29981544,111380.0,111370.0,0.07977]
[1752136358496,0.92171907,111380.0,111370.0,0.07977]
[1752136358696,1.55335907,111380.0,111370.0,0.07977]
[1752136359099,1.55335907,111380.0,111370.0,0.31959363]
[1752136359992,1.19255907,111380.0,111370.0,0.31959363]
[1752136360200,1.55335907,111380.0,111370.0,0.31959363]
[1752136360798,1.53967907,111380.0,111370.0,0.30372363]
[1752136364202,1.29985544,111380.0,111370.0,0.30372363]
[1752136364400,1.53967907,111380.0,111370.0,0.30372363]
[1752136365006,1.53967907,111380.0,111370.0,0.0639]
[1752136365303,1.53967907,111380.0,111370.0,0.30372363]
[1752136366403,1.17887907,111380.0,111370.0,0.30372363]
[1752136366703,1.53967907,111380.0,111370.0,0.30372363]
[1752136371305,1.7795027,111380.0,111370.0,0.30372363]
[1752136373506,1.4187027,111380.0,111370.0,0.30372363]
[1752136373705,1.7795027,111380.0,111370.0,0.30372363]
[1752136374706,1.67171036,111380.0,111370.0,0.30372363]
[1752136374902,1.31091036,111380.0,111370.0,0.30372363]
[1752136375101,1.7795027,111380.0,111370.0,0.30372363]
[1752136376108,1.7795027,111380.0,111370.0,0.0639]
[1752136376310,1.7880527,111380.0,111370.0,0.0639]
[1752136378310,1.7795027,111380.0,111370.0,0.0639]
[1752136378608,1.7794227,111380.0,111370.0,0.0639]
[1752136379906,1.4186227,111380.0,111370.0,0.0639]
[1752136380106,1.7794227,111380.0,111370.0,0.0639]
[1752136380904,1.4186227,111380.0,111370.0,0.0639]
[1752136381203,1.7794227,111380.0,111370.0,0.0639]
[1752136382511,1.29977544,111380.0,111370.0,0.0639]
[1752136382809,1.7794227,111380.0,111370.0,0.0639]
[1752136383613,1.4186227,111380.0,111370.0,0.0639]
[1752136383813,1.53959907,111380.0,111370.0,0.0639]
[1752136384915,0.1795352,111360.0,111350.0,0.7779785]
[1752136385116,1.06820352,111360.0,111350.0,0.58927912]
[1752136385416,1.05452352,111360.0,111350.0,0.40972772]
[1752136385902,0.81469989,111360.0,111350.0,0.40972772]
[1752136386106,1.05452352,111360.0,111350.0,0.58927912]
[1752136386313,0.81469989,111360.0,111350.0,0.59227912]
[1752136386513,1.05452352,111360.0,111350.0,0.59227912]
[1752136386715,1.06820352,111360.0,111350.0,0.59427912]
[1752136389117,1.07698979,111360.0,111350.0,0.59427912]
[1752136390218,1.07698979,111360.0,111350.0,0.55396565]
[1752136390920,1.06330979,111360.0,111350.0,0.55396565]
[1752136392618,1.14413035,111360.0,111350.0,0.55396565]
[1752136394312,1.14413035,111360.0,111350.0,0.55396586]
[1752136394619,1.12680566,111360.0,111350.0,0.55396586]
[1752136396018,1.12680566,111360.0,111350.0,0.55296586]
[1752136396620,1.12680566,111360.0,111350.0,0.53929183]
[1752136397421,1.12680566,111360.0,111350.0,0.52525503]
[1752136397615,1.12680566,111360.0,111350.0,0.52325503]
[1752136398021,1.12680566,111360.0,111350.0,0.55081358]
[1752136398520,0.88698203,111360.0,111350.0,0.55081358]
[1752136398819,1.14048566,111360.0,111350.0,0.55081358]
[1752136400825,1.12680566,111360.0,111350.0,0.51073358]
[1752136401024,1.12680566,111360.0,111350.0,0.54976358]
[1752136401324,1.12680566,111360.0,111350.0,0.54976368]
[1752136402521,1.0459851,111360.0,111350.0,0.59007715]
[1752136405429,1.0459851,111360.0,111350.0,0.57608987]
[1752136405727,1.0459851,111360.0,111350.0,0.59012667]
[1752136407129,0.80616147,111360.0,111350.0,0.59012667]
[1752136407327,1.0459851,111360.0,111350.0,0.59012667]
[1752136407630,0.80596147,111360.0,111350.0,0.59012667]
[1752136407825,0.81964147,111360.0,111350.0,0.59012667]
[1752136409234,0.81964157,111360.0,111350.0,0.57608987]
[1752136410034,0.20200157,111360.0,111350.0,0.57608987]
[1752136410331,0.81960157,111360.0,111350.0,0.57608987]
[1752136410944,0.80592157,111360.0,111350.0,0.57608987]
[1752136411132,0.81960157,111360.0,111350.0,0.57608987]
[1752136413736,0.81960157,111360.0,111350.0,0.33626624]
[1752136414134,1.0594252,111360.0,111350.0,0.57608987]
[1752136414336,1.0594252,111360.0,111350.0,0.33626624]
[1752136414535,1.0594252,111360.0,111350.0,0.57608987]
[1752136416234,1.0594252,111360.0,111350.0,0.59012665]
[1752136416932,1.0457452,111360.0,111350.0,0.55109665]
[1752136417236,1.0457452,111360.0,111350.0,0.56698665]
[1752136417837,1.06282831,111360.0,111350.0,0.56698665]
[1752136419130,1.06282831,111360.0,111350.0,0.52667318]
[1752136420640,1.06282831,111360.0,111350.0,0.54981318]
[1752136422339,1.06282831,111360.0,111350.0,0.30998955]
[1752136422539,1.06282831,111360.0,111350.0,0.54981318]
[1752136423039,0.44522831,111360.0,111350.0,0.54981318]
[1752136423239,1.07634831,111360.0,111350.0,0.54981318]
[1752136423538,1.06266831,111360.0,111350.0,0.54981318]
[1752136425039,0.82284468,111360.0,111350.0,0.54981318]
[1752136425236,1.06266831,111360.0,111350.0,0.54981318]
[1752136426841,1.06266831,111360.0,111350.0,0.6037139]
[1752136427946,1.06266831,111360.0,111350.0,0.60352651]
[1752136428540,0.82284468,111360.0,111350.0,0.36370288]
[1752136428742,0.82284468,111360.0,111350.0,0.60352651]
[1752136428942,0.83652468,111360.0,111350.0,0.60352651]
[1752136430348,0.83652468,111360.0,111350.0,0.36370288]
[1752136430546,0.83652468,111360.0,111350.0,0.60352651]
[1752136430847,0.82284468,111360.0,111350.0,0.60560651]
[1752136431050,0.83652468,111360.0,111350.0,0.59156975]
[1752136431443,0.83652468,111360.0,111350.0,0.60560653]
[1752136431644,1.07634831,111360.0,111350.0,0.60560653]
[1752136432348,0.65698938,111360.0,111350.0,0.96640653]
[1752136432550,0.91723012,111360.0,111350.0,0.91250581]
[1752136433152,0.91723012,111360.0,111350.0,0.92303301]
[1752136433461,0.90844385,111360.0,111350.0,0.92303301]
[1752136434062,0.90844385,111360.0,111350.0,0.92303308]
[1752136434362,0.91751159,111360.0,111350.0,0.92303308]
[1752136435264,0.83668675,111360.0,111350.0,0.92303308]
[1752136436064,0.94445321,111360.0,111350.0,0.91250581]
[1752136436864,0.94445321,111360.0,111350.0,0.55170581]
[1752136437061,0.94445321,111360.0,111350.0,0.91250581]
[1752136437260,0.94445321,111360.0,111350.0,0.91250539]
[1752136439965,0.94445321,111360.0,111350.0,0.67268176]
[1752136440356,0.94445321,111360.0,111350.0,0.91239976]
[1752136440757,0.93077321,111360.0,111350.0,0.87128976]
[1752136441057,0.94445321,111360.0,111350.0,0.91239976]
[1752136442569,0.83668675,111360.0,111350.0,0.95282396]
[1752136443471,0.83668675,111360.0,111350.0,0.71300033]
[1752136443670,0.83668675,111360.0,111350.0,0.95282396]
[1752136445268,0.83668675,111360.0,111350.0,0.93943996]
[1752136448471,0.82761901,111360.0,111350.0,0.92550923]
[1752136448972,0.64808311,111360.0,111350.0,0.92550923]
[1752136450373,0.64808311,111360.0,111350.0,0.56470923]
[1752136450575,0.64808311,111360.0,111350.0,0.92550923]
[1752136450761,0.81393971,111360.0,111350.0,0.88439923]
[1752136450967,0.82761971,111360.0,111350.0,0.92550923]
[1752136451167,0.81393971,111360.0,111350.0,0.92550923]
[1752136451365,0.63440311,111360.0,111350.0,0.92550923]
[1752136451576,0.81393871,111360.0,111350.0,0.93954559]
[1752136451975,0.64784311,111360.0,111350.0,1.17936922]
[1752136452278,0.61708,111360.0,111350.0,0.93954559]
[1752136452477,0.63076,111360.0,111350.0,0.93954559]
[1752136452880,0.61708,111360.0,111350.0,0.93954559]
[1752136453275,0.63076,111360.0,111350.0,0.93954559]
[1752136455276,0.64794141,111360.0,111350.0,0.93954559]
[1752136455683,0.64794141,111360.0,111350.0,0.99344631]
[1752136459780,0.64794141,111360.0,111350.0,1.23326994]
[1752136460178,0.64794141,111360.0,111350.0,0.99344631]
[1752136460378,0.64794141,111360.0,111350.0,1.23326994]
[1752136460683,0.64794141,111360.0,111350.0,1.85026994]
[1752136461185,0.63426141,111360.0,111350.0,1.83357994]
[1752136461386,0.64794141,111360.0,111350.0,1.83357994]
[1752136461887,0.82747901,111360.0,111350.0,0.73693268]
[1752136462088,0.64794141,111360.0,111350.0,0.99208631]
[1752136462986,0.64794141,111360.0,111350.0,0.97804995]
[1752136468491,0.82747911,111360.0,111350.0,0.97804995]
[1752136468693,1.06730274,111360.0,111350.0,0.97804995]
[1752136469992,0.82747911,111360.0,111350.0,0.97804995]
[1752136470191,1.06730274,111360.0,111350.0,0.97804995]
[1752136470792,1.05362274,111360.0,111350.0,0.93829995]
[1752136470995,1.05362274,111360.0,111350.0,0.73822632]
[1752136471195,1.05362274,111360.0,111350.0,0.97804995]
[1752136471796,0.87408504,111360.0,111350.0,0.97804995]
[1752136471992,0.63426141,111360.0,111350.0,0.97804995]
[1752136472198,0.64794141,111360.0,111350.0,0.97804995]
[1752136473197,0.64794141,111360.0,111350.0,0.98857704]
[1752136475398,0.82747751,111360.0,111350.0,1.00749683]
[1752136476097,0.64794141,111360.0,111350.0,1.00749683]
[1752136476493,0.64794141,111360.0,111350.0,0.7676732]
[1752136476700,0.64794141,111360.0,111350.0,1.00749683]
[1752136477901,0.64794141,111360.0,111350.0,0.96707263]
[1752136478298,0.64794141,111360.0,111350.0,0.60627263]
[1752136478498,0.64794141,111360.0,111350.0,0.96707263]
[1752136478702,0.64794141,111360.0,111350.0,0.60627263]
[1752136478896,0.64794141,111360.0,111350.0,0.96707263]
[1752136479297,0.64794141,111360.0,111350.0,0.60627263]
[1752136479500,0.64794141,111360.0,111350.0,0.96707263]
[1752136479702,0.64794141,111360.0,111350.0,1.0074699]
[1752136480202,0.64794141,111360.0,111350.0,0.96707263]
[1752136480403,0.64794141,111360.0,111350.0,0.60627263]